Cogmind - Beta 16 @@@ ROGUE MODE // 2026.01.30 @ 16:41:24 Player: Suffixing Result: Destroyed by DAS Turret with DAS Cannon Performance ------------- Evolutions (0) 0 Regions Visited (3) 600 Robots Destroyed (23) 115 Value Destroyed (567) 567 Prototype IDs (24) 480 Alien Tech Used (0) 0 Bonus (300) 300 TOTAL SCORE: 2062 Bonus ------- Aligned with FarCom 300 Cogmind --------- Core Integrity 0/250 Matter 287/300 Energy 94/100 System Corruption 0% Temperature Cool (6) Movement Walking (45) Location -10/Exiles Parts ------- > --- POWER (1) -------- (None) > --- PROPULSION (2) --- Potential Leg Potential Leg > --- UTILITY (2) ------ Medium Storage Unit > --- WEAPON (2) ------- AWS/Gauss > --- INVENTORY (10) --- Light Treads Light Treads Assault Rifle Grenade Launcher Peak State ------------ > --- POWER ------------ Ion Engine > --- PROPULSION ------- Potential Leg Potential Leg > --- UTILITY ---------- Medium Storage Unit Tractor Beam > --- WEAPON ----------- AWS/Gauss > --- INVENTORY -------- Nuclear Core Reinforced Deuterium Engine Light Treads Light Treads Assault Rifle Assault Rifle Grenade Launcher Blade Trap Blade Trap Blade Trap [Rating: 40] Favorites ----------- Power Ion Engine Engine Ion Engine Propulsion Light Treads Treads Light Treads Leg Potential Leg Utility Medium Storage Unit Device Tractor Beam Storage Medium Storage Unit Weapon Assault Rifle Ballistic Gun Assault Rifle Launcher Grenade Launcher Build | -11 -10 -10 -10 ------- Run | Yrd Mat Min Exi Slots Evolved . | . . . . Power . | . . . . Propulsion . | . . . . Utility . | . . . . Weapon . | . . . . Parts Attached 15 | 2 7 1 5 Power 2 | . 2 . . Engine 2 | . 2 . . Core . | . . . . Reactor . | . . . . Propulsion 6 | 2 2 . 2 Treads 4 | 2 2 . . Leg 2 | . . . 2 Wheel . | . . . . Hover . | . . . . Flight . | . . . . Utility 3 | . 2 1 . Device 2 | . 1 1 . Storage 1 | . 1 . . Processor . | . . . . Hackware . | . . . . Protection . | . . . . Artifact . | . . . . Weapon 4 | . 1 . 3 Energy Gun . | . . . . Energy Cannon . | . . . . Ballistic Gun 3 | . 1 . 2 Ballistic Cannon . | . . . . Launcher 1 | . . . 1 Special Weapon . | . . . . Impact Weapon . | . . . . Slashing Weapon . | . . . . Piercing Weapon . | . . . . Special Melee Weapon . | . . . . Unidentified Prototypes 1 | . . 1 . Parts Lost 3 | . . . 3 Power 1 | . . . 1 Propulsion . | . . . . Utility 1 | . . . 1 Weapon 1 | . . . 1 Highest Loss Streak 3 | . . . 3 To Critical Strikes 3 | . . . 3 Average Backups 6 | 6 7 8 4 Power 1 | 1 1 1 . Propulsion 2 | 4 3 3 1 Utility . | . . 1 . Weapon 1 | 1 1 2 2 Tool/Special . | . . . . Unused Backups 13 | . 6 4 3 Power 5 | . 2 . 3 Propulsion 2 | . . 2 . Utility 4 | . 2 2 . Weapon 2 | . 2 . . Tool/Special . | . . . . Average Slot Usage (%) 94 | . 95 100 90 Engine 13 | . 13 14 13 Treads 24 | . 27 28 18 Leg 3 | . . . 9 Device 11 | . 10 14 13 Storage 14 | . 14 14 14 Ballistic Gun 25 | . 28 28 19 Peak Build Rating 40 | 6 8 16 40 Average Rating 11 | 6 6 8 20 On Entrance 7 | 6 6 8 8 Avg Prop Armor Cover (%) . | . . . . Naked Turns . | . . . . Heaviest Build 26 | 12 20 20 26 Greatest Support 60 | 40 40 40 60 Greatest Overweight (x) . | . . . . Average Overweight (x) . | . . . . Largest Inventory Capacity 10 | 8 10 10 10 Average Capacity 9 | 8 9 10 10 Most Carried 10 | 6 10 10 10 Average Carried 7 | 5 7 9 7 Final Capacity 10 | 8 10 10 10 Final Carried 10 | 4 10 10 4 Class Distribution -------------------- 100% | Mutant Dominant Class ---------------- Mutant | -10/Materials Mutant | -10/Mines Mutant | -10/Exiles Resources | -11 -10 -10 -10 ----------- Run | Yrd Mat Min Exi Matter Collected 888 | 200 433 95 160 Remotely 344 | . 249 95 . Salvage Created 793 | . 595 181 17 Parts 61 | . 49 12 . Haulers Intercepted 2 | . 2 . . Recyclers Shooed 1 | . 1 . . Parts Field Recycled . | . . . . Retrieved Matter . | . . . . Parts Self-Destructed . | . . . . Prevented . | . . . . Parts Restored . | . . . . Kills | -11 -10 -10 -10 ------- Run | Yrd Mat Min Exi Combat Hostiles Destroyed 23 | . 13 5 5 Guns 18 | . 13 5 . AOE 5 | . . . 5 Classes Destroyed 7 | . 6 1 . Worker 1 | . 1 . . Tunneler 2 | . 1 1 . Hauler 2 | . 2 . . Operator 1 | . 1 . . Swarmer 3 | . 3 . . Grunt 14 | . 10 4 . Assembled 6 | . . 1 5 Best Kill Streak 7 | . 7 5 5 Combat Bots Only 5 | . 5 4 5 Max Kills in Single Turn 2 | . 1 1 2 Gunslinging . | . . . . Exploded 2 | . . . 2 Melee . | . . . . Uniques/NPCs Destroyed . | . . . . Combat | -11 -10 -10 -10 -------- Run | Yrd Mat Min Exi Hostile Shots Fired 133 | . 45 22 66 Missed 38 | . 12 6 20 Hits 95 | . 33 16 46 Projectile 95 | . 33 16 46 Critical Strikes 21 | . 1 . 20 Damage Taken 1644 | . 383 177 1084 Core 304 | . 25 24 255 Absorbed by Shields . | . . . . Regen/Repaired (Parts) 113 | . 113 . . Core Remaining (%) 100 | 100 . . . Volleys Fired 77 | . 50 13 14 Largest 2 | . 2 2 2 Hottest 40 | . 40 40 40 Shots Fired 162 | . 100 26 36 Gun 156 | . 100 26 30 Cannon . | . . . . Launcher 6 | . . . 6 Special . | . . . . Kinetic 156 | . 100 26 30 Thermal . | . . . . Explosive 6 | . . . 6 Electromagnetic . | . . . . Robot Hit Streak 11 | . 5 9 11 Robot Miss Streak 4 | . 4 1 2 Penetration Max . | . . . . Secondary Targets . | . . . . Autonomous 14 | . . . 14 Shots Hit Robots 104 | . 56 21 27 Core Hits 53 | . 27 10 16 Critical Kills . | . . . . Critical Parts Destroyed . | . . . . Critical Strikes . | . . . . Melee Attacks . | . . . . Impact . | . . . . Slashing . | . . . . Piercing . | . . . . Sneak Attacks . | . . . . Combat Hostiles . | . . . . Follow-up Attacks . | . . . . Damage Inflicted 1695 | . 776 300 619 Guns 1470 | . 751 299 420 Cannons . | . . . . Explosions 199 | . . . 199 Melee . | . . . . Ramming 26 | . 25 1 . Kinetic 1470 | . 751 299 420 Thermal . | . . . . Explosive 199 | . . . 199 Electromagnetic . | . . . . Impact . | . . . . Slashing . | . . . . Piercing . | . . . . Highest Corruption . | . . . . Average Corruption . | . . . . Corruption Purged . | . . . . Corruption Blocked . | . . . . Overload Shots . | . . . . Overflow Damage . | . . . . Projectiles . | . . . . Explosions . | . . . . Melee . | . . . . Knockbacks . | . . . . Impact . | . . . . Kinetic . | . . . . Secondary . | . . . . Self-Inflicted Damage 26 | . . . 26 Shots 1 | . . . 1 Rammed 5 | . 4 1 . Targets Rammed 6 | . 5 1 . Kicked . | . . . . Crushed 1 | . 1 . . Highest Temperature 20 | . 20 5 . Average Temperature 4 | . 4 5 . Received Heat Transfer 285 | . 201 84 . Siege Activations . | . . . . Martial Activations . | . . . . Shielding Activations . | . . . . Robots Disrupted . | . . . . Combat Hostiles . | . . . . Robots Corrupted . | . . . . Combat Hostiles . | . . . . Parts Fried . | . . . . Impact Corruptions . | . . . . Robots Melted . | . . . . Combat Hostiles . | . . . . Parts Melted . | . . . . Heat Transferred . | . . . . Parts Sabotaged . | . . . . Parts Stolen . | . . . . Parts Stripped . | . . . . Power Chain Reactions . | . . . . Alert | -11 -10 -10 -10 ------- Run | Yrd Mat Min Exi Maximum Alert Level . | . . . . Low Security (%) 100 | 100 100 100 . Level 1 . | . . . . Level 2 . | . . . . Level 3 . | . . . . Level 4 . | . . . . Level 5 . | . . . . High Security . | . . . . Max Security . | . . . . Peak Influence 142 | . 142 77 . Initial 17 | . . 17 . Average 32 | . 39 10 . Influence Increases 496 | . 411 85 . Destroy 0b10 Robot/C 340 | . 260 80 . Destroy 0b10 Robot/NC 30 | . 25 5 . Destroy Leader 54 | . 54 . . Successful Hack 25 | . 25 . . Destroy Structure 2 | . 2 . . Lose Combat Pursuer 45 | . 45 . . Influence Decreases 496 | . 365 78 53 Entered New Map 82 | . . 29 53 Time Decay 414 | . 365 49 . Squads Dispatched 2 | . 2 . . Investigation 1 | . 1 . . Extermination . | . . . . Reinforcement 1 | . 1 . . Assault . | . . . . Garrison . | . . . . Intercept . | . . . . Searches Triggered . | . . . . Construction Impeded . | . . . . Haulers Reinforced . | . . . . Active Scanning Responses . | . . . . Cargo Convoy Interrupts . | . . . . Stealth | -11 -10 -10 -10 --------- Run | Yrd Mat Min Exi Distress Signals . | . . . . Communications Jammed . | . . . . Distress Signals . | . . . . Times Spotted 41 | . 27 5 9 Peak Tracking Total 11 | . 4 4 11 Tactical Retreats 5 | . 3 1 1 Traps | -11 -10 -10 -10 ------- Run | Yrd Mat Min Exi Traps Triggered 4 | . 4 . . Indirectly . | . . . . Trap Hack Attempts . | . . . . Triggered . | . . . . Disarmed . | . . . . Reprogrammed . | . . . . Reused 3 | . . . 3 Traps Extracted . | . . . . Installed 3 | . . . 3 Triggered . | . . . . Most Traps Carried 3 | . . 3 3 Machines | -11 -10 -10 -10 ---------- Run | Yrd Mat Min Exi Machines Disabled 6 | . . . 6 Max in Single Turn 2 | . . . 2 Machines Repaired . | . . . . Machines Dismantled . | . . . . Machines Sabotaged . | . . . . Overloaded Fab Kills . | . . . . Hacking | -11 -10 -10 -10 --------- Run | Yrd Mat Min Exi Machines Accessed 12 | . 10 1 1 Terminals 8 | . 7 1 . Fabricators . | . . . . Repair Stations 1 | . 1 . . Recycling Units 2 | . 2 . . Scanalyzers . | . . . . Garrison Access . | . . . . Total Hacks 33 | . 28 4 1 Successful 12 | . 11 . 1 Failed 21 | . 17 4 . Catastrophic 3 | . 1 2 . Database Lockouts . | . . . . Manual 23 | . 18 4 1 Terminals 26 | . 22 4 . Fabricators . | . . . . Repair Stations 3 | . 3 . . Recycling Units 3 | . 3 . . Scanalyzers . | . . . . Garrison Access . | . . . . Terminal Hacks 5 | . 4 . 1 Robot Analysis 2 | . 2 . . Emergency Access Points 1 | . 1 . . Hauler Manifests 1 | . 1 . . Proto ID Catalog 1 | . . . 1 Fabricator Hacks . | . . . . Repair Station Hacks 2 | . 2 . . Scan Component 1 | . 1 . . Repair 1 | . 1 . . Recycling Unit Hacks 1 | . 1 . . Retrieve Components 1 | . 1 . . Scanalyzer . | . . . . Garrison Access Hacks . | . . . . Unauthorized Hacks 4 | . 4 . . Terminals 4 | . 4 . . Skim 4 | . 4 . . Fabricators . | . . . . Repair Stations . | . . . . Recycling Units . | . . . . Scanalyzers . | . . . . Garrison Access . | . . . . Data Cores Recovered . | . . . . Used . | . . . . Hacking Detections 9 | . 8 1 . Full Trace Events 1 | . . 1 . Feedback Events . | . . . . Feedback Blocked . | . . . . Robot Schematics Acquired . | . . . . Robots Built . | . . . . Authchips . | . . . . Time . | . . . . Total Robot Build Rating . | . . . . Part Schematics Acquired . | . . . . Parts Built . | . . . . Authchips . | . . . . Time . | . . . . Total Part Build Rating . | . . . . Part Studies Acquired . | . . . . Parts Repaired 1 | . 1 . . Time 26 | . 26 . . Parts Recycled . | . . . . Recycled Matter . | . . . . Retrieved Matter . | . . . . Retrieved Components 1 | . 1 . . Parts Scanalyzed . | . . . . Part Schematics Acquired . | . . . . Parts Damaged . | . . . . Bothacking | -11 -10 -10 -10 ------------ Run | Yrd Mat Min Exi Used RIF Installer . | . . . . Robots Hacked . | . . . . Non-combat . | . . . . Combat . | . . . . Robot Hacks Applied . | . . . . Relay Couplers Released . | . . . . Fabnet Peak Effective % . | . . . . Robots Rewired . | . . . . Allies Hacked . | . . . . Hacks Repelled . | . . . . Allies | -11 -10 -10 -10 -------- Run | Yrd Mat Min Exi Total Allies 1 | . . 1 . Largest Group 1 | . . 1 . Highest-Rated Group 31 | . . 31 . Highest-Rated Ally 31 | . . 31 . Total Orders . | . . . . Ally Attacks . | . . . . Total Damage . | . . . . Kills . | . . . . Allies Corrupted . | . . . . Allies Melted . | . . . . Intel | -11 -10 -10 -10 ------- Run | Yrd Mat Min Exi Active Infowar (turns) 2 | . . 2 . Sensors 2 | . . 2 . Robot Analysis Total 2 | . 2 . . Derelict Logs Recovered 1 | . . 1 . Drone Launches . | . . . . Drone Recoveries . | . . . . Exploration | -11 -10 -10 -10 ------------- Run | Yrd Mat Min Exi Turns Passed 2740 | 5 1375 466 894 Spaces Moved 1594 | 1 687 248 658 Core . | . . . . Treads 1290 | 1 687 248 354 Legs 304 | . . . 304 Wheels . | . . . . Hover . | . . . . Flight . | . . . . Fastest Speed 45 | 160 160 160 45 Average Speed 142 | 160 160 160 116 Slowest Speed 160 | 160 160 160 160 Overloaded Moves 157 | . . . 157 Propulsion Burnouts . | . . . . Robots Hopped . | . . . . Potential Cave-ins . | . . . . Cave-ins Triggered . | . . . . Exploration Rate (%) 56 | 2 98 58 68 Regions Visited 3 Branch Regions 2 Pre-discovered Areas . | . . . . Known Exits Taken . | . . . . Unknown Exits Taken 3 | 1 1 1 . Scrap Searched 1 | . . 1 . Spaces Dug . | . . . . Terrain Destroyed 25 | . . . 25 Melee . | . . . . Projectile . | . . . . AOE 25 | . . . 25 Terrain Rammed . | . . . . Walls Destroyed . | . . . . Machines Disabled . | . . . . Actions | -11 -10 -10 -10 --------- Run | Yrd Mat Min Exi Total 1929 | 4 860 293 772 Wait 158 | . 82 20 56 Move 1591 | . 686 247 658 Hop . | . . . . Pick Up 36 | . 20 5 11 Fast Attach . | . . . . Attach 15 | . 8 1 6 Detach 5 | . . . 5 Swap 9 | 2 4 1 2 Drop 29 | 2 5 5 17 Fire 77 | . 50 13 14 Melee . | . . . . Ram . | . . . . Kick . | . . . . Crush 6 | . 5 1 . Escape Stasis . | . . . . Rewire . | . . . . Trap 3 | . . . 3 Miscellaneous . | . . . . Route ------- -11/Scrapyard -10/Materials (discovered 5 exits: [*Mat x3] / *Min x2) -10/Mines (discovered 2 exits: [*Mat] / *Exi) -10/Exiles (discovered 2 exits: Min x2) History --------- Turn | Location | Event 6 | -11/Scrapyard | Discovered new exit (range 0) 6 | -11/Scrapyard | Entered Materials 311 | -10/Materials | Build established: Mutant 316 | -10/Materials | Discovered new exit (range 15) 580 | -10/Materials | Repaired Lgt. Treads 665 | -10/Materials | Discovered new exit (range 6) 681 | -10/Materials | Discovered new exit (range 9) 974 | -10/Materials | Discovered new exit (range 16) 1202 | -10/Materials | Discovered new exit (range 9) 1381 | -10/Materials | Entered Mines 1384 | -10/Mines | Received a Mining Laser from a helpful Derelict 1425 | -10/Mines | Found a damaged Exp. Sensor Array with a note attached 1428 | -10/Mines | Found Prototype Device 1429 | -10/Mines | Identified Exp. Sensor Array 1557 | -10/Mines | Found a hidden stash of uninstalled traps 1738 | -10/Mines | Excavation squad dispatched 1738 | -10/Mines | A large section of the Mines collapsed 1801 | -10/Mines | Discovered new exit (range 7) 1839 | -10/Mines | Deemed a non-threat by the Exiles lab entrance 1839 | -10/Mines | Discovered new exit (range 5) 1847 | -10/Mines | Entered Exiles 1848 | -10/Exiles | Identified exit to Mines 1887 | -10/Exiles | Met 8R-AWN 1913 | -10/Exiles | Met EX-HEX 1972 | -10/Exiles | Met EX-DEC 2153 | -10/Exiles | Met EX-BIN 2180 | -10/Exiles | Aligned with FarCom system 2182 | -10/Exiles | Given EX-Vault access code 2218 | -10/Exiles | Opened EX-Vault 2239 | -10/Exiles | Found AWS/Gauss 2250 | -10/Exiles | Found Potential Leg 2253 | -10/Exiles | Found Potential Leg 2286 | -10/Exiles | Warned to stay clear of 0b10 Research branches 2510 | -10/Exiles | Warned about trapping Exiles lab 2569 | -10/Exiles | Attacked by the Exiles 2689 | -10/Exiles | Core integrity fell below 50% 2726 | -10/Exiles | Lost 3 parts (1p1u1w) 2740 | -10/Exiles | Core integrity fell below 20% 2741 | -10/Exiles | Destroyed by DAS Turret with DAS Cannon Last Messages --------------- 02713_ Penetrated by HV Slug. 02713_ HV Slug penetrates Wall. 02717_ Extracted 150 matter. 02717_ Penetrated by HV Slug. 02717_ HV Slug penetrates Wall. 02719_ Wall collapses. 02722_ Penetrated by HV Slug. 02722_ HV Slug penetrates Wall. 02722_ Penetrated by HV Slug. 02722_ HV Slug penetrates Wall. [Achievement: Drive-By] 02728_ Slug penetrates DAS Turret. 02728_ Machine disabled. 02729_ Knocked back. 02732_ Acquired 10 matter. 02732_ Slug penetrates DAS Turret. 02732_ Slug penetrates Machine. 02733_ Slug penetrates DAS Turret. 02735_ Knocked back. 02735_ Slug penetrates DAS Turret. Map ----- +----------------------------------------------------+ | ""#????????????? """????????#" """#? | | ""#????????????? """????????## """"? | | ###????????????" ?????????# """#? | | ##?????????????" ?????????#" "X" """"? | | ##????????????" "#????????#" """ #? | | #??????????? ""#????????#" """""""""#? | | ######??????"" ""#???????##" ###########? | | # ##?????# #???????##"" #??????????? | | # ##???## ##?######"" #??????????? | | "#####X "###""""""" ##?????????? | | #" """"" " "" ##???###### | | #"# % " """ " #####""""" | | ### " " " """ | | ??# # "" | | ??## ## a " | | ???###### | | ????????## [ | | ?????????##" | | ??????????#""" % """""" | | ?????????##" ######""" | | ?????????#"" ""##????#####""" | | ?????????#""" """##?????????##""" | | ????????#""" """##???????????#"""" | | ????????#""" ""#???????????##"" | | ????????#"" ########??####"""" | | ????????#" @%## ####""" | | ????????#" """" | | ????????## t % | | ?????????#" % | | ??????????# " | | ??????????#" " "" "" | | ??????????#"""" ""## ##""" " " ""# | | ??????????#"" ""#### ######""" """# | | ???????????" """"##??# #????###""""## | | ???????????""" """#???# #??????######? | | ???????????? ""##???! ????????????? | | ???????????#"" """##???#" ???????????? | | ?????????????""" ##????#" ???????????? | | ?????????????#"""" ##?????#!!""!"??????????? | | ??????????????## ????????######??????????? | | ????????????????#### #????????????????????????? | | ???????????????????## ?????????????????????????? | | ????????????????????# ?????????????????????????? | | ????????????????????# ?????????????????????????? | | ????????????????????? ??????????????????????????? | | ?????????????????????????????????????????????????? | | ?????????????????????????????????????????????????? | | ?????????????????????????????????????????????????? | | ?????????????????????????????????????????????????? | | ?????????????????????????????????????????????????? | +----------------------------------------------------+ Best States ------------- Heat Dissipation 25 Energy Generation 10 Energy Capacity 250 Matter Stores 300 Matter Capacity 300 Sight Range 16 Robot Scan Range 20 Terrain Scan Density 10 Evasion (%) 66 Recoil Reduction 2 Item Schematics ----------------- None Robot Schematics ------------------ None Fabricated ------------ Nothing Repaired ---------- Lgt. Treads | 19% | -10/Materials Studied --------- None Alien Tech Used ----------------- None Achievements -------------- Drive-By Sixth Sense Sprinter Challenges ------------ None Game ------ Seed FusionActuatorDoublenader Manual? 0 Play Time 00:21:11 Cumulative 46.8 hours Start 2026.01.30 @ 16:19:19 End 2026.01.30 @ 16:41:24 Sessions 1 Manual Loads 0 Difficulty Rogue Special Mode None Game No. 183 Rogue 139 Adventurer 44 Explorer 0 Win Type - Total 1 Types 1/0/0/0/0/0/0/0/0/0 Lore% 57 Gallery% 39 Achievement% 26 Wizard Run 0 Options --------- Layout 1 ASCII 0 Keyboard 0 Movement Numpad Keybinds 0 Fullscreen 1 Font 24/Smallcaps Map View 50x35 Zoom Use 0% Tactical HUD 1 Map Filters NONE Filters NONE Steam 1 RUN: 7e294c84-f7a9-41a7-893c-1b4dc1208cd2